{"text_format":"1","workbook":"xlsx","n_sheets":4,"sheets":["Overview","Record","Review","Data"],"not_rendered":{"charts":0,"images":1,"macros":1,"external_links":0,"defined_names":0,"comments":0,"pivot_tables":0},"unopened":[],"bounds":{"document_bytes":16777216,"sheet_cells":100000,"rows_first":2000,"rows_last":500,"rows_between":2000,"halvings":0,"cell_chars":16384,"cell_head_chars":4096},"cells_cut":0,"cells_raw":0,"read":"whole","date_system":"1900"}

{"sheet":"Overview","index":0,"n_rows":4,"n_cols":1,"rows_kept":4,"cut":false,"hidden":false,"merged":[[1,0,1,2],[3,0,3,2],[2,0,2,2],[0,0,0,2]]}
["Writing Log Overview"]
["NOTE: Macros must be enabled for full functionality of this Writing Log.\n\nUse this time management tracking tool to log your daily writing progress, review your weekly progress, and track your writing progress over time. \n\nRECORD: In the Record tab, enter the date of each writing activity, the number of words and pages written, and how long you wrote each time. You can use the Notes section to detail what you worked on, the progress you made, and/or where you need to start the next time you write.\n\nREVIEW: In the Review tab, you can review what you accomplished in a particular week by entering a start date (for example, if you want to know what you accomplished the first week of the month, enter 4/1/21 and you'll see all of your recorded entries from 4/1/21 to 4/7/21). You can use this tab to review any 7-week time period (not just Mon-Sun)."]
["DATA: In the Data tab, you can see an overview of all of your daily entries recorded within the Record tab. Please note, however, that although the information in this tab can be manually edited, deleted, or added to, it should be done with caution to avoid errors in reporting within the Review tab."]
["© Textbook & Academic Authors Association. All rights reserved"]

{"sheet":"Record","index":1,"n_rows":8,"n_cols":10,"rows_kept":8,"cut":false,"hidden":false,"merged":[[0,0,0,3],[6,1,6,2],[7,1,7,3],[1,0,1,3],[3,1,3,2],[4,1,4,2],[5,1,5,2]]}
["Record your progress"]
["Use the fields below to log your daily writing progress. You can also log multiple writing intervals on the same day. The running total column will calculate multiple writing intervals for the same date. Only numerical information should be entered into the words, minutes, and pages fields. Click the \"Record Progress\" button to submit each entry into the Data tab. "]
[]
["Date",null,null,"Running Total",null,{"$f":"B4","v":"00:00:00"},{"$f":"B5","v":0},{"$f":"B6","v":0},{"$f":"B7","v":0},{"$f":"B8","v":0}]
["Words",null,null,{"$f":"SUMIF(Data!A:A,Record!B4,Data!B:B)","v":0}]
["Minutes",null,null,{"$f":"SUMIF(Data!A:A,Record!B4,Data!C:C)","v":0}]
["Pages",null,null,{"$f":"SUMIF(Data!A:A,Record!B4,Data!D:D)","v":0}]
["Notes"]

{"sheet":"Review","index":2,"n_rows":13,"n_cols":4,"rows_kept":13,"cut":false,"hidden":false,"merged":[[2,1,2,3],[1,0,1,3],[0,0,0,3]]}
["Review your progress"]
["Want to see what you've accomplished in a particular week? Enter a date to review your total words, minutes and pages within any 7-day time period."]
["Week beginning"]
[]
["Date","Words","Minutes","Pages"]
[{"$f":"B3","v":"00:00:00"},{"$f":"SUMIF(Data!A:A,A6,Data!B:B)","v":0},{"$f":"SUMIF(Data!A:A,A6,Data!C:C)","v":0},{"$f":"SUMIF(Data!A:A,A6,Data!D:D)","v":0}]
[{"$f":"A6+1","v":"1900-01-01"},{"$f":"SUMIF(Data!A:A,A7,Data!B:B)","v":0},{"$f":"SUMIF(Data!A:A,A7,Data!C:C)","v":0},{"$f":"SUMIF(Data!A:A,A7,Data!D:D)","v":0}]
["1900-01-02",{"$f":"SUMIF(Data!A:A,A8,Data!B:B)","v":0},{"$f":"SUMIF(Data!A:A,A8,Data!C:C)","v":0},{"$f":"SUMIF(Data!A:A,A8,Data!D:D)","v":0}]
["1900-01-03",{"$f":"SUMIF(Data!A:A,A9,Data!B:B)","v":0},{"$f":"SUMIF(Data!A:A,A9,Data!C:C)","v":0},{"$f":"SUMIF(Data!A:A,A9,Data!D:D)","v":0}]
["1900-01-04",{"$f":"SUMIF(Data!A:A,A10,Data!B:B)","v":0},{"$f":"SUMIF(Data!A:A,A10,Data!C:C)","v":0},{"$f":"SUMIF(Data!A:A,A10,Data!D:D)","v":0}]
["1900-01-05",{"$f":"SUMIF(Data!A:A,A11,Data!B:B)","v":0},{"$f":"SUMIF(Data!A:A,A11,Data!C:C)","v":0},{"$f":"SUMIF(Data!A:A,A11,Data!D:D)","v":0}]
["1900-01-06",{"$f":"SUMIF(Data!A:A,A12,Data!B:B)","v":0},{"$f":"SUMIF(Data!A:A,A12,Data!C:C)","v":0},{"$f":"SUMIF(Data!A:A,A12,Data!D:D)","v":0}]
["Totals",{"$f":"SUM(B6:B12)","v":0},{"$f":"SUM(C6:C12)","v":0},{"$f":"SUM(D6:D12)","v":0}]

{"sheet":"Data","index":3,"n_rows":3,"n_cols":5,"rows_kept":3,"cut":false,"hidden":false,"merged":[[1,0,1,4],[0,0,0,4]]}
["Recorded Data"]
["Below is an overview of all of the daily entries that you have been recording in the Record tab. Please note: This tab is populated by information entered on the Record tab. To remove an errant record, delete the entire row associated with that entry. You may also make manual adjustments to the contents in the fields below or add new rows, but be careful--data reported on the Review tab is dependent on the accuracy of the information shown below."]
["Date","Words","Minutes","Pages","Notes"]